fUST/lending_fUST_20250715
["ID","MTS","AMOUNT","RATE_DAILY","PERIOD"]
[372261910,1752567068999,-886.89,0.00023013,2]
[372261911,1752567069017,-873.01,0.00023013,2]
[372261912,1752567069031,-460.0,0.00023013,2]
[372261913,1752567069041,-460.0,0.00023013,2]
[372261914,1752567069051,-263.0,0.00023013,2]
[372261915,1752567069060,-861.3,0.00023013,2]
[372261916,1752567069070,-560.6,0.00023013,2]
[372261917,1752567069081,-460.0,0.00023013,2]
[372261918,1752567069091,-460.0,0.00023013,2]
[372261919,1752567069102,-1269.77,0.00023013,2]
[372261920,1752567069111,-525.82451933,0.00023013,2]
[372261921,1752567069121,-867.08,0.00023013,2]
[372261922,1752567069131,-4147.86,0.00023013,2]
[372261923,1752567069140,-5848.8,0.00023013,2]
[372261924,1752567069150,-886.89,0.00023013,2]
[372261925,1752567069159,-963.83,0.00023013,2]
[372261926,1752567069169,-771.92,0.00023013,2]
[372261927,1752567069178,-617.26,0.00023013,2]
[372261928,1752567069187,-680.18,0.00023013,2]
[372261929,1752567069197,-460.0,0.00023013,2]
[372261930,1752567069207,-1007.25,0.00023013,2]
[372261931,1752567069216,-601.44504176,0.00023013,2]
[372261932,1752567069226,-917.91,0.00023013,2]
[372261933,1752567069235,-1939.88,0.00023013,2]
[372261934,1752567069245,-1354.66,0.00023013,2]
[372261935,1752567069254,-3586.98,0.00023013,2]
[372261936,1752567069264,-541.6,0.00023013,2]
[372261937,1752567069273,-7025.13,0.00023013,2]
[372261938,1752567069282,-808.58,0.00023013,2]
[372261939,1752567069292,-649.64,0.00023013,2]
[372261940,1752567069301,-647.05,0.00023013,2]
[372261941,1752567069310,-483.97,0.00023013,2]
[372261942,1752567069320,-563.75,0.00023013,2]
[372261943,1752567069329,-861.58,0.00023013,2]
[372261944,1752567069338,-538.14,0.00023013,2]
[372261945,1752567069348,-1599.32,0.00023013,2]
[372261946,1752567069357,-2326.61,0.00023013,2]
[372261947,1752567069367,-888.4,0.00023013,2]
[372261948,1752567069376,-460.0,0.00023013,2]
[372261949,1752567069386,-460.0,0.00023013,2]
[372261950,1752567069396,-965.69,0.00023013,2]
[372261951,1752567069407,-560.9,0.00023013,2]
[372261952,1752567069417,-172.0,0.00023014,7]
[372261953,1752567069427,-4000.0,0.00023018,4]
[372261954,1752567069436,-804.0,0.00023058,2]
[372261955,1752567069446,-1000.0,0.00023068,2]
[372261956,1752567069455,-3891.0,0.00023076,2]
[372261957,1752567069465,-151.0,0.00023086,6]
[372261958,1752567069481,-804.0,0.00023089,2]
[372261959,1752567069490,-36210.95,0.000231,7]
[372261960,1752567069500,-1236.95564081,0.00023111,2]
[372261961,1752567069510,-165.110026,0.00023114,5]
[372261962,1752567069520,-8363.10057809,0.00023141,8]
[372261963,1752567069929,-460.0,0.00019178,2]
[372261964,1752567069939,-460.0,0.00019178,2]
[372261965,1752567069949,-460.0,0.00019452,2]
[372261966,1752567069958,-460.0,0.00019726,2]
[372261967,1752567069968,-153.77,0.0002,2]
[372261968,1752567069979,-171.94,0.00022564,2]
[372261969,1752567069989,-171.94,0.00022638,2]
[372261970,1752567069998,-171.94,0.00022711,2]
[372261971,1752567070014,-4774.4072636,0.00023141,8]
[372261972,1752567070023,-165.110026,0.00023148,14]
[372261973,1752567070033,-804.0,0.00023149,2]
[372261974,1752567070042,-660.0,0.00023149,2]
[372261975,1752567070055,-292.68779885,0.00023168,2]
[372261976,1752567070064,-804.0,0.00023172,2]
[372261977,1752567070073,-5770.43,0.000232,7]
[372261978,1752567070082,-804.0,0.00023244,2]
[372261979,1752567070092,-804.0,0.00023253,2]
[372261980,1752567070102,-460.0,0.00023286,2]
[372261981,1752567070111,-6077.9,0.00023286,2]
[372261982,1752567070120,-1389.19,0.00023286,2]
[372261983,1752567070130,-824.94,0.00023286,2]
[372261984,1752567070140,-1943.38,0.00023286,2]
[372261985,1752567070149,-1676.85,0.00023286,2]
[372261986,1752567070159,-2981.8,0.00023286,2]
[372261987,1752567070168,-1605.01,0.00023286,2]
[372261988,1752567070177,-636.57,0.00023286,2]
[372261989,1752567070187,-2148.88,0.00023286,2]
[372261990,1752567070196,-226.783177,0.00023287,7]
[372261991,1752567070206,-226.783177,0.00023287,7]
[372261992,1752567070215,-477.51,0.00023287,2]
[372261993,1752567070225,-487.39,0.00023287,2]
[372261994,1752567070235,-667.67,0.00023287,2]
[372261995,1752567070244,-839.74,0.00023287,2]
[372261996,1752567070254,-430.55842357,0.00023287,2]
[372261997,1752567070263,-495.21,0.00023287,2]
[372261998,1752567070273,-838.93,0.00023287,2]
[372261999,1752567070282,-886.89,0.00023287,2]
[372262000,1752567070291,-873.01,0.00023287,2]
[372262001,1752567070300,-193.6948703,0.00023287,2]
[372262002,1752567070309,-460.0,0.00023287,2]
[372262003,1752567070319,-460.0,0.00023287,2]
[372262004,1752567070328,-861.3,0.00023287,2]
[372262005,1752567070337,-560.6,0.00023287,2]
[372262006,1752567070347,-460.0,0.00023287,2]
[372262007,1752567070356,-460.0,0.00023287,2]
[372262008,1752567070366,-1269.77,0.00023287,2]
[372262009,1752567070377,-867.08,0.00023287,2]
[372262010,1752567070387,-4147.86,0.00023287,2]
[372262011,1752567070396,-5848.8,0.00023287,2]
[372262012,1752567070405,-886.89,0.00023287,2]
[372262013,1752567070415,-963.83,0.00023287,2]
[372262014,1752567070424,-771.92,0.00023287,2]
[372262015,1752567070433,-617.26,0.00023287,2]
[372262016,1752567070443,-680.18,0.00023287,2]
[372262017,1752567070452,-460.0,0.00023287,2]
[372262018,1752567070462,-1007.25,0.00023287,2]
[372262019,1752567070474,-917.91,0.00023287,2]
[372262020,1752567070484,-1939.88,0.00023287,2]
[372262021,1752567070494,-1354.66,0.00023287,2]
[372262022,1752567070504,-3586.98,0.00023287,2]
[372262023,1752567070513,-541.6,0.00023287,2]
[372262024,1752567070523,-7025.13,0.00023287,2]
[372262025,1752567070533,-808.58,0.00023287,2]
[372262026,1752567070542,-649.64,0.00023287,2]
[372262027,1752567070551,-647.05,0.00023287,2]
[372262028,1752567070560,-483.97,0.00023287,2]
[372262029,1752567070569,-563.75,0.00023287,2]
[372262030,1752567070578,-861.58,0.00023287,2]
[372262031,1752567070588,-538.14,0.00023287,2]
[372262032,1752567070597,-1599.32,0.00023287,2]
[372262033,1752567070606,-2326.61,0.00023287,2]
[372262034,1752567070615,-888.4,0.00023287,2]
[372262035,1752567070625,-460.0,0.00023287,2]
[372262036,1752567070634,-460.0,0.00023287,2]
[372262037,1752567070644,-965.69,0.00023287,2]
[372262038,1752567070653,-560.9,0.00023287,2]
[372262039,1752567070663,-804.0,0.00023288,2]
[372262040,1752567070673,-2449.87,0.000233,7]
[372262041,1752567070682,-642.0,0.000233,2]
[372262042,1752567070691,-1000.0,0.00023303,5]
[372262043,1752567070701,-4000.0,0.00023308,2]
[372262044,1752567070711,-804.0,0.0002331,2]
[372262045,1752567070720,-13137.50784169,0.00023314,9]
[372262046,1752567070731,-804.0,0.0002335,2]
[372262047,1752567070740,-1380.046002,0.000234,5]
[372262048,1752567070750,-3891.0,0.00023419,2]
[372262049,1752567070760,-1000.0,0.0002342,5]
[372262050,1752567070771,-151.0,0.00023435,6]
[372262051,1752567070881,-1000.0,0.0002344,5]
[372262052,1752567070891,-268.93642217,0.00023456,2]
[372262053,1752567070900,-1000.0,0.0002346,5]
[372262054,1752567070910,-1000.0,0.0002348,5]
[372262055,1752567070920,-13137.50784169,0.00023486,9]
[372262056,1752567070930,-1000.0,0.000235,5]
[372262057,1752567070940,-833.14994784,0.00023515,2]
[372262058,1752567070950,-200.0,0.0002353,8]
[372262059,1752567070960,-2200.0,0.00023554,2]
[372262060,1752567070970,-460.0,0.0002356,2]
[372262061,1752567070980,-6077.9,0.0002356,2]
[372262062,1752567070989,-1389.19,0.0002356,2]
[372262063,1752567070999,-824.94,0.0002356,2]
[372262064,1752567071009,-1943.38,0.0002356,2]
[372262065,1752567071019,-1676.85,0.0002356,2]
[372262066,1752567071028,-2981.8,0.0002356,2]
[372262067,1752567071039,-1605.01,0.0002356,2]
[372262068,1752567071049,-636.57,0.0002356,2]
[372262069,1752567071059,-2148.88,0.0002356,2]
[372262070,1752567071069,-151.0,0.00023561,7]
[372262071,1752567071078,-151.0,0.00023561,7]
[372262072,1752567071088,-151.0,0.00023561,7]
[372262073,1752567071097,-151.0,0.00023561,7]
[372262074,1752567071107,-151.0,0.00023561,7]
[372262075,1752567071117,-457.320865,0.00023561,7]
[372262076,1752567071126,-457.320865,0.00023561,7]
[372262077,1752567071136,-151.0,0.00023561,7]
[372262078,1752567071145,-151.0,0.00023561,7]
[372262079,1752567071155,-477.51,0.00023561,2]
[372262080,1752567071165,-487.39,0.00023561,2]
[372262081,1752567071174,-667.67,0.00023561,2]
[372262082,1752567071184,-839.74,0.00023561,2]
[372262083,1752567071194,-360.89018947,0.00023561,2]
[372262084,1752567071205,-495.21,0.00023561,2]
[372262085,1752567071215,-838.93,0.00023561,2]
[372262086,1752567071224,-886.89,0.00023561,2]
[372262087,1752567071236,-873.01,0.00023561,2]
[372262088,1752567071246,-460.0,0.00023561,2]
[372262089,1752567071256,-460.0,0.00023561,2]
[372262090,1752567071265,-861.3,0.00023561,2]
[372262091,1752567071275,-560.6,0.00023561,2]
[372262092,1752567071285,-460.0,0.00023561,2]
[372262093,1752567071295,-460.0,0.00023561,2]
[372262094,1752567071304,-1269.77,0.00023561,2]
[372262095,1752567071314,-867.08,0.00023561,2]
[372262096,1752567071324,-4147.86,0.00023561,2]
[372262097,1752567071334,-5848.8,0.00023561,2]
[372262098,1752567071344,-886.89,0.00023561,2]
[372262099,1752567071353,-963.83,0.00023561,2]
[372262100,1752567071364,-771.92,0.00023561,2]
[372262101,1752567071373,-617.26,0.00023561,2]
[372262102,1752567071384,-680.18,0.00023561,2]
[372262103,1752567071394,-460.0,0.00023561,2]
[372262104,1752567071404,-1007.25,0.00023561,2]
[372262105,1752567071414,-917.91,0.00023561,2]
[372262106,1752567071424,-1939.88,0.00023561,2]
[372262107,1752567071433,-1354.66,0.00023561,2]
[372262108,1752567071443,-3586.98,0.00023561,2]
[372262109,1752567071454,-541.6,0.00023561,2]
[372262110,1752567071464,-7025.13,0.00023561,2]
[372262111,1752567071477,-808.58,0.00023561,2]
[372262112,1752567071487,-649.64,0.00023561,2]
[372262113,1752567071497,-647.05,0.00023561,2]
[372262114,1752567071506,-483.97,0.00023561,2]
[372262115,1752567071516,-563.75,0.00023561,2]
[372262116,1752567071527,-200.0,0.00023561,2]
[372262117,1752567071537,-861.58,0.00023561,2]
[372262118,1752567071547,-200.0,0.00023561,2]
[372262119,1752567071557,-538.14,0.00023561,2]
[372262120,1752567071566,-1599.32,0.00023561,2]
[372262121,1752567071575,-2326.61,0.00023561,2]
[372262122,1752567071585,-888.4,0.00023561,2]
[372262123,1752567071595,-460.0,0.00023561,2]
[372262124,1752567071605,-460.0,0.00023561,2]
[372262125,1752567071614,-965.69,0.00023561,2]
[372262126,1752567071623,-560.9,0.00023561,2]
[372262127,1752567071632,-151.0,0.000236,7]
[372262128,1752567071642,-151.0,0.000236,7]
[372262129,1752567071651,-151.0,0.000236,7]
[372262130,1752567071660,-151.0,0.000236,7]
[372262131,1752567071671,-151.0,0.000236,7]
[372262132,1752567071680,-151.0,0.000236,7]
[372262133,1752567071690,-36624.85,0.000236,2]
[372262134,1752567071699,-151.0,0.00023624,7]
[372262135,1752567071709,-151.0,0.00023624,7]
[372262136,1752567071718,-1236.95564081,0.00023656,2]
[372262137,1752567071730,-150000.0,0.00023657,2]
[372262138,1752567071740,-150000.0,0.00023657,2]
[372262139,1752567071749,-150000.0,0.00023657,2]
[372262140,1752567071760,-13137.50784169,0.00023659,9]
[372262141,1752567071770,-760.0,0.00023697,2]
[372262142,1752567071779,-151.0,0.00023783,6]
[372262143,1752567071789,-162.112765,0.000238,7]
[372262144,1752567071799,-162.112765,0.000238,7]
[372262145,1752567071809,-13137.50784169,0.00023831,10]
[372262146,1752567071819,-460.0,0.00023834,2]
[372262147,1752567071829,-6077.9,0.00023834,2]
[372262148,1752567071838,-1389.19,0.00023834,2]
[372262149,1752567071849,-824.94,0.00023834,2]
[372262150,1752567071858,-1943.38,0.00023834,2]
[372262151,1752567071868,-1676.85,0.00023834,2]
[372262152,1752567071878,-2981.8,0.00023834,2]
[372262153,1752567071887,-1605.01,0.00023834,2]
[372262154,1752567071897,-636.57,0.00023834,2]
[372262155,1752567071907,-2148.88,0.00023834,2]
[372262156,1752567071917,-208.944323,0.00023835,7]
[372262157,1752567071927,-151.0,0.00023835,7]
[372262158,1752567071937,-158.03688,0.00023835,7]
[372262159,1752567071946,-158.03688,0.00023835,7]
[372262160,1752567071956,-151.0,0.00023835,7]
[372262161,1752567071965,-477.51,0.00023835,2]
[372262162,1752567071975,-487.39,0.00023835,2]
[372262163,1752567071986,-667.67,0.00023835,2]
[372262164,1752567071996,-839.74,0.00023835,2]
[372262165,1752567072005,-495.21,0.00023835,2]
[372262166,1752567072015,-838.93,0.00023835,2]
[372262167,1752567072024,-886.89,0.00023835,2]
[372262168,1752567072034,-873.01,0.00023835,2]
[372262169,1752567072043,-460.0,0.00023835,2]
[372262170,1752567072053,-239.04363834,0.00023835,2]
[372262171,1752567072062,-861.3,0.00023835,2]
[372262172,1752567072072,-560.6,0.00023835,2]
[372262173,1752567072081,-460.0,0.00023835,2]
[372262174,1752567072091,-324.19923674,0.00023835,2]
[372262175,1752567072101,-1269.77,0.00023835,2]
[372262176,1752567072110,-867.08,0.00023835,2]
[372262177,1752567072120,-4147.86,0.00023835,2]
[372262178,1752567072129,-5848.8,0.00023835,2]
[372262179,1752567072139,-886.89,0.00023835,2]
[372262180,1752567072149,-963.83,0.00023835,2]
[372262181,1752567072158,-771.92,0.00023835,2]
[372262182,1752567072167,-617.26,0.00023835,2]
[372262183,1752567072176,-680.18,0.00023835,2]
[372262184,1752567072185,-460.0,0.00023835,2]
[372262185,1752567072194,-1007.25,0.00023835,2]
[372262186,1752567072203,-917.91,0.00023835,2]
[372262187,1752567072212,-1939.88,0.00023835,2]
[372262188,1752567072221,-1354.66,0.00023835,2]
[372262189,1752567072231,-3586.98,0.00023835,2]
[372262190,1752567072241,-541.6,0.00023835,2]
[372262191,1752567072250,-7025.13,0.00023835,2]
[372262192,1752567072259,-808.58,0.00023835,2]
[372262193,1752567072268,-649.64,0.00023835,2]
[372262194,1752567072278,-647.05,0.00023835,2]
[372262195,1752567072287,-483.97,0.00023835,2]
[372262196,1752567072296,-563.75,0.00023835,2]
[372262197,1752567072306,-861.58,0.00023835,2]
[372262198,1752567072315,-538.14,0.00023835,2]
[372262199,1752567072324,-1599.32,0.00023835,2]
[372262200,1752567072334,-2326.61,0.00023835,2]
[372262201,1752567072343,-888.4,0.00023835,2]
[372262202,1752567072352,-460.0,0.00023835,2]
[372262203,1752567072362,-460.0,0.00023835,2]
[372262204,1752567072371,-965.69,0.00023835,2]
[372262205,1752567072381,-560.9,0.00023835,2]
[372262206,1752567072391,-2250.35632908,0.00023856,2]
[372262207,1752567072400,-214.37129034,0.000239,10]
[372262208,1752567072410,-600.0,0.00023904,2]
[372262209,1752567072420,-151.0,0.00024,7]
[372262210,1752567072430,-207.474624,0.00024,7]
[372262211,1752567072439,-207.474624,0.00024,7]
[372262212,1752567072448,-224.902329,0.00024,7]
[372262213,1752567072457,-224.902329,0.00024,7]
[372262214,1752567072466,-151.0,0.00024,7]
[372262215,1752567072481,-151.0,0.00024,7]
[372262216,1752567072491,-160.0,0.00024,7]
[372262217,1752567072500,-230.76969291,0.00024,7]
[372262218,1752567072509,-230.76969291,0.00024,10]
[372262219,1752567072519,-160.0,0.00024,7]
[372262220,1752567072528,-160.0,0.00024,10]
[372262221,1752567072538,-160.0,0.00024,7]
[372262222,1752567072548,-160.0,0.00024,7]
[372262223,1752567072557,-160.0,0.00024,10]
[372262224,1752567072567,-215.50840239,0.00024,7]
[372262225,1752567072577,-215.50840239,0.00024,10]
[372262226,1752567072586,-838.84061749,0.00024,7]
[372262227,1752567072596,-838.84061749,0.00024,10]
[372262228,1752567072605,-160.0,0.00024,7]
[372262229,1752567072615,-160.0,0.00024,10]
[372262230,1752567072624,-525.51022752,0.00024,7]
[372262231,1752567072634,-525.51022752,0.00024,10]
[372262232,1752567072644,-13137.50784169,0.00024003,10]
[372262233,1752567072654,-4000.0,0.00024015,4]
[372262234,1752567072663,-231.28369723,0.00024043,2]
[372262235,1752567072673,-800.0,0.00024054,2]
[372262236,1752567072682,-160.0,0.000241,10]
[372262237,1752567072691,-460.0,0.00024108,2]
[372262238,1752567072702,-6077.9,0.00024108,2]
[372262239,1752567072711,-1389.19,0.00024108,2]
[372262240,1752567072721,-824.94,0.00024108,2]
[372262241,1752567072732,-1943.38,0.00024108,2]
[372262242,1752567072742,-1676.85,0.00024108,2]
[372262243,1752567072751,-2981.8,0.00024108,2]
[372262244,1752567072762,-1605.01,0.00024108,2]
[372262245,1752567072771,-636.57,0.00024108,2]
[372262246,1752567072781,-2148.88,0.00024108,2]
[372262247,1752567072791,-151.0,0.00024109,7]
[372262248,1752567072800,-151.0,0.00024109,7]
[372262249,1752567072810,-151.0,0.00024109,7]
[372262250,1752567072819,-477.51,0.00024109,2]
[372262251,1752567072830,-487.39,0.00024109,2]
[372262252,1752567072841,-667.67,0.00024109,2]
[372262253,1752567072850,-839.74,0.00024109,2]
[372262254,1752567072860,-495.21,0.00024109,2]
[372262255,1752567072869,-838.93,0.00024109,2]
[372262256,1752567072880,-886.89,0.00024109,2]
[372262257,1752567072890,-873.01,0.00024109,2]
[372262258,1752567072900,-460.0,0.00024109,2]
[372262259,1752567072910,-861.3,0.00024109,2]
[372262260,1752567072919,-560.6,0.00024109,2]
[372262261,1752567072929,-460.0,0.00024109,2]
[372262262,1752567072939,-1269.77,0.00024109,2]
[372262263,1752567072948,-867.08,0.00024109,2]
[372262264,1752567072958,-4147.86,0.00024109,2]
[372262265,1752567072968,-5848.8,0.00024109,2]
[372262266,1752567072978,-886.89,0.00024109,2]
[372262267,1752567072987,-963.83,0.00024109,2]
[372262268,1752567072997,-771.92,0.00024109,2]
[372262269,1752567073006,-617.26,0.00024109,2]
[372262270,1752567073016,-680.18,0.00024109,2]
[372262271,1752567073026,-519.8135976,0.00024109,2]
[372262272,1752567073036,-1007.25,0.00024109,2]
[372262273,1752567073046,-917.91,0.00024109,2]
[372262274,1752567073055,-1939.88,0.00024109,2]
[372262275,1752567073065,-1354.66,0.00024109,2]
[372262276,1752567073075,-3586.98,0.00024109,2]
[372262277,1752567073084,-541.6,0.00024109,2]
[372262278,1752567073094,-808.58,0.00024109,2]
[372262279,1752567073104,-7025.13,0.00024109,2]
[372262280,1752567073121,-649.64,0.00024109,2]
[372262281,1752567073135,-647.05,0.00024109,2]
[372262282,1752567073144,-483.97,0.00024109,2]
[372262283,1752567073154,-563.75,0.00024109,2]
[372262284,1752567073164,-861.58,0.00024109,2]
[372262285,1752567073175,-538.14,0.00024109,2]
[372262286,1752567073186,-1599.32,0.00024109,2]
[372262287,1752567073196,-2326.61,0.00024109,2]
[372262288,1752567073205,-888.4,0.00024109,2]
[372262289,1752567073306,-460.0,0.00024109,2]
[372262290,1752567073316,-460.0,0.00024109,2]
[372262291,1752567073327,-965.69,0.00024109,2]
[372262292,1752567073337,-560.9,0.00024109,2]
[372262293,1752567073348,-151.0,0.00024132,6]
[372262294,1752567073358,-600.0,0.00024153,2]
[372262295,1752567073369,-800.0,0.00024162,2]
[372262296,1752567073380,-1003.88661494,0.00024164,2]
[372262297,1752567073390,-176.0,0.00024164,7]
[372262298,1752567073400,-13137.50784169,0.00024176,10]
[372262299,1752567073410,-160.0,0.000242,3]
[372262300,1752567073419,-160.0,0.000242,5]
[372262301,1752567073430,-20884.70633613,0.000242,7]
[372262302,1752567073445,-3785.86014099,0.000242,7]
[372262303,1752567073482,-65.76562169,0.000242,7]
[372262304,1752567073494,-6564.00000072,0.000242,7]
[372262305,1752567074614,185.185998,0.00013699,2]
[372262308,1752567631425,200.0,0.00026103,120]
[372262311,1752567871446,188.2811958,0.00017981,2]
[372262316,1752567947120,-800.0,0.00018064,2]
[372262317,1752567947143,-300.0,0.00018899,2]
[372262318,1752567947166,-313.19860142,0.00018899,2]
[372262319,1752567964837,190.2149871,0.00017982,2]
[372262336,1752568051097,-865.20349278,0.00018865,2]
[372262337,1752568052311,-470.24283696,0.00018865,2]
[372262338,1752568052333,-886.80139858,0.00018899,2]
[372262339,1752568052356,-1200.0,0.00018899,2]
[372262340,1752568052378,-300.0,0.00018899,2]
[372262341,1752568052399,-2121.87919154,0.000189,2]
[372262346,1752568123194,3692.410824,0.00025494,120]
[372262350,1752568130785,184.404411,0.00013699,2]
[372262351,1752568133819,1921.3741333,0.00017935,2]
[372262361,1752568158096,-166.0,0.00018009,2]
[372262362,1752568158117,-618.0,0.00018064,2]
[372262502,1752568166112,-156.8,0.00018064,2]
[372262514,1752568232169,-25.2,0.00018064,2]
[372262515,1752568232178,-712.59387778,0.00018873,2]
[372262516,1752568232188,-300.0,0.00018899,2]
[372262517,1752568232196,-300.0,0.00018899,2]
[372262518,1752568232206,-281.0,0.00018899,2]
[372262519,1752568232215,-534.85392108,0.00018899,2]
[372262520,1752568232226,-665.14607892,0.00018899,2]
[372262521,1752568232235,-300.0,0.00018899,2]
[372262522,1752568232245,-2633.1033328,0.000189,2]
[372262523,1752568232255,-211.43525886,0.000189,2]
[372262524,1752568232264,-1311.23967369,0.000189,2]
[372262525,1752568232279,-7398.72720526,0.000189,2]
[372262526,1752568232290,-3329.65524649,0.000189,2]
[372262527,1752568232300,-4097.72549482,0.00018968,2]
[372262528,1752568232311,-7166.13763337,0.00018968,2]
[372262529,1752568232323,-267.88980492,0.00018968,2]
[372262554,1752568238015,-16919.3850746,0.00018968,2]
[372262555,1752568238025,-388.04,0.00018968,3]
[372262556,1752568238034,-501.85606976,0.00018973,2]
[372262557,1752568238044,-158.04336676,0.00018973,2]
[372262558,1752568238054,-502.00060529,0.00018973,2]
[372262559,1752568238064,-500.98068818,0.00018973,2]
[372262560,1752568238073,-500.0,0.00018973,2]
[372262561,1752568238083,-500.0,0.00018973,2]
[372262562,1752568238093,-504.57181653,0.00018973,2]
[372262563,1752568238103,-501.42302675,0.00018973,2]
[372262564,1752568238113,-500.0,0.00018973,2]
[372262565,1752568238122,-500.0,0.00018973,2]
[372262566,1752568238131,-500.0,0.00018973,2]
[372262567,1752568238141,-500.0,0.00018973,2]
[372262568,1752568238151,-500.0,0.00018973,2]
[372262569,1752568238161,-500.0,0.00018973,2]
[372262570,1752568238170,-500.0,0.00018973,2]
[372262571,1752568238179,-500.0,0.00018973,2]
[372262572,1752568238189,-500.0,0.00018973,2]
[372262573,1752568238198,-626.22700118,0.00018973,2]
[372262574,1752568238315,-500.0,0.00018973,2]
[372262575,1752568238325,-500.0,0.00018973,2]
[372262576,1752568238334,-500.0,0.00018973,2]
[372262577,1752568238344,-500.0,0.00018973,2]
[372262578,1752568238353,-500.80735244,0.00018973,2]
[372262579,1752568238362,-500.0,0.00018973,2]
[372262580,1752568238372,-500.0,0.00018973,2]
[372262581,1752568238381,-1002.68725868,0.00018977,2]
[372262582,1752568238391,-370000.0,0.00018978,2]
[372262583,1752568238400,-500.0,0.00018999,2]
[372262584,1752568238410,-505.16367341,0.00018999,2]
[372262585,1752568238419,-500.0,0.00018999,2]
[372262586,1752568238428,-500.0,0.00018999,2]
[372262587,1752568238438,-500.0,0.00018999,2]
[372262588,1752568238448,-500.0,0.00018999,2]
[372262589,1752568238457,-500.0,0.00018999,2]
[372262590,1752568238466,-500.0,0.00018999,2]
[372262591,1752568238476,-500.0,0.00018999,2]
[372262592,1752568238485,-500.0,0.00018999,2]
[372262593,1752568238494,-476.23401344,0.00018999,2]
[372262594,1752568238505,-500.0,0.00018999,2]
[372262595,1752568238514,-500.0,0.00018999,2]
[372262596,1752568238523,-500.0,0.00018999,2]
[372262597,1752568238532,-500.0,0.00018999,2]
[372262598,1752568238542,-642.29172,0.00018999,2]
[372262599,1752568238551,-243.04869061,0.00018999,2]
[372262600,1752568238561,-500.0,0.00018999,2]
[372262601,1752568238570,-500.0,0.00018999,2]
[372262602,1752568238579,-500.0,0.00018999,2]
[372262603,1752568238589,-500.0,0.00018999,2]
[372262604,1752568238598,-500.0,0.00018999,2]
[372262605,1752568238608,-500.0,0.00018999,2]
[372262606,1752568238617,-437.2017659,0.00018999,2]
[372262607,1752568238626,-500.0,0.00018999,2]
[372262608,1752568238635,-500.0,0.00018999,2]
[372262609,1752568238645,-500.0,0.00018999,2]
[372262610,1752568238654,-500.0,0.00018999,2]
[372262611,1752568238664,-500.0,0.00018999,2]
[372262612,1752568238674,-504.55560096,0.00018999,2]
[372262613,1752568238683,-151.0,0.00019,2]
[372262614,1752568238692,-29423.88555222,0.00019,2]
[372262615,1752568238702,-151.0,0.00019,2]
[372262616,1752568238711,-151.0,0.00019,2]
[372262617,1752568238720,-4754.98252433,0.00019082,2]
[372262618,1752568238729,-321.93199536,0.00019093,2]
[372262619,1752568238739,-151.0,0.000191,2]
[372262620,1752568238748,-151.0,0.000191,2]
[372262621,1752568238759,-151.0,0.000191,2]
[372262622,1752568238769,-151.0,0.000191,2]
[372262623,1752568238778,-12039.6221253,0.00019141,2]